fUSD/lending_fUSD_20250206
["ID","MTS","AMOUNT","RATE_DAILY","PERIOD"]
[351956338,1738860649215,-769.06,0.00017534,2]
[351956339,1738860649227,-500.0,0.00017534,2]
[351956340,1738860649240,-500.0,0.00017534,2]
[351956341,1738860649253,-1104.2,0.00017534,2]
[351956342,1738860649266,-1914.98,0.00017534,2]
[351956343,1738860649279,-500.0,0.00017534,2]
[351956344,1738860649293,-500.0,0.00017534,2]
[351956345,1738860649307,-1560.07,0.00017534,2]
[351956346,1738860649320,-500.0,0.00017534,2]
[351956347,1738860649333,-500.0,0.00017534,2]
[351956348,1738860649345,-1556.99,0.00017534,2]
[351956349,1738860649357,-500.0,0.00017534,2]
[351956350,1738860649373,-500.0,0.00017534,2]
[351956351,1738860649385,-682.72,0.00017534,2]
[351956352,1738860649397,-973.72,0.00017534,2]
[351956353,1738860649409,-707.35,0.00017534,2]
[351956354,1738860649422,-750.97,0.00017534,2]
[351956355,1738860649433,-511.46,0.00017534,2]
[351956356,1738860649446,-675.15,0.00017534,2]
[351956357,1738860649458,-759.09,0.00017534,2]
[351956358,1738860649470,-1470.9,0.00017534,2]
[351956359,1738860649482,-500.0,0.00017534,2]
[351956360,1738860649494,-1530.82,0.00017534,2]
[351956361,1738860649504,-780.39,0.00017534,2]
[351956362,1738860649513,-500.0,0.00017534,2]
[351956363,1738860649524,-500.0,0.00017534,2]
[351956364,1738860649533,-500.0,0.00017534,2]
[351956365,1738860649543,-554.73,0.00017534,2]
[351956366,1738860649553,-500.0,0.00017534,2]
[351956367,1738860649562,-500.0,0.00017534,2]
[351956368,1738860649572,-558.21,0.00017534,2]
[351956369,1738860649582,-500.0,0.00017534,2]
[351956370,1738860649591,-500.0,0.00017534,2]
[351956371,1738860649601,-500.0,0.00017534,2]
[351956372,1738860649611,-1212.42,0.00017534,2]
[351956373,1738860649623,-500.0,0.00017534,2]
[351956374,1738860649633,-838.35,0.00017534,2]
[351956375,1738860649643,-500.0,0.00017534,2]
[351956376,1738860649653,-1142.64,0.00017534,2]
[351956377,1738860649663,-1268.05,0.00017534,2]
[351956378,1738860649673,-500.0,0.00017534,2]
[351956379,1738860649683,-500.0,0.00017534,2]
[351956380,1738860649995,-500.0,0.00017534,2]
[351956381,1738860650028,-601.72,0.00017534,2]
[351956382,1738860650050,-500.0,0.00017534,2]
[351956383,1738860650060,-410.88973624,0.00017534,2]
[351956384,1738860650070,-545.2,0.00017534,2]
[351956385,1738860650080,-500.0,0.00017534,2]
[351956386,1738860650089,-692.47,0.00017534,2]
[351956387,1738860650099,-631.28,0.00017534,2]
[351956388,1738860650109,-813.07,0.00017546,2]
[351956389,1738860650121,-746.58,0.0001767,2]
[351956390,1738860650131,-1857.56,0.0001767,2]
[351956391,1738860650140,-901.62,0.0001767,2]
[351956392,1738860650150,-1181.4,0.0001767,2]
[351956393,1738860650160,-500.0,0.00017671,2]
[351956394,1738860650170,-769.06,0.00017671,2]
[351956395,1738860650179,-500.0,0.00017671,2]
[351956396,1738860650188,-500.0,0.00017671,2]
[351956397,1738860650198,-1104.2,0.00017671,2]
[351956398,1738860650207,-1914.98,0.00017671,2]
[351956399,1738860650217,-500.0,0.00017671,2]
[351956400,1738860650227,-500.0,0.00017671,2]
[351956401,1738860650237,-1560.07,0.00017671,2]
[351956402,1738860650247,-500.0,0.00017671,2]
[351956403,1738860650256,-500.0,0.00017671,2]
[351956404,1738860650266,-1556.99,0.00017671,2]
[351956405,1738860650277,-332.03394525,0.00017671,2]
[351956406,1738860650299,-167.96605475,0.00017671,2]
[351956407,1738860650309,-500.0,0.00017671,2]
[351956408,1738860650319,-682.72,0.00017671,2]
[351956409,1738860650329,-973.72,0.00017671,2]
[351956410,1738860650338,-707.35,0.00017671,2]
[351956411,1738860650348,-750.97,0.00017671,2]
[351956412,1738860650358,-511.46,0.00017671,2]
[351956413,1738860650371,-45.94957642,0.00017671,2]
[351956414,1738860650384,-508.52999999,0.00017671,2]
[351956415,1738860650396,-120.67042359,0.00017671,2]
[351956416,1738860650406,-759.09,0.00017671,2]
[351956417,1738860650416,-1470.9,0.00017671,2]
[351956418,1738860650425,-500.0,0.00017671,2]
[351956419,1738860650434,-1530.82,0.00017671,2]
[351956420,1738860650444,-780.39,0.00017671,2]
[351956421,1738860650453,-500.0,0.00017671,2]
[351956422,1738860650463,-500.0,0.00017671,2]
[351956423,1738860650473,-500.0,0.00017671,2]
[351956424,1738860650482,-554.73,0.00017671,2]
[351956425,1738860650491,-500.0,0.00017671,2]
[351956426,1738860650500,-500.0,0.00017671,2]
[351956427,1738860650510,-558.21,0.00017671,2]
[351956428,1738860650519,-500.0,0.00017671,2]
[351956429,1738860650529,-500.0,0.00017671,2]
[351956430,1738860650538,-500.0,0.00017671,2]
[351956431,1738860650547,-1212.42,0.00017671,2]
[351956432,1738860650558,-500.0,0.00017671,2]
[351956433,1738860650568,-838.35,0.00017671,2]
[351956434,1738860650577,-500.0,0.00017671,2]
[351956435,1738860650587,-1142.64,0.00017671,2]
[351956436,1738860650596,-1268.05,0.00017671,2]
[351956437,1738860650606,-500.0,0.00017671,2]
[351956438,1738860650616,-500.0,0.00017671,2]
[351956439,1738860650629,-500.0,0.00017671,2]
[351956440,1738860650639,-601.72,0.00017671,2]
[351956441,1738860650648,-500.0,0.00017671,2]
[351956442,1738860650658,-500.0,0.00017671,2]
[351956443,1738860650667,-692.47,0.00017671,2]
[351956444,1738860650677,-631.28,0.00017671,2]
[351956445,1738860650686,-630.38,0.00017767,2]
[351956446,1738860650696,-75.15042414,0.00017807,2]
[351956447,1738860650716,-671.42957586,0.00017807,2]
[351956448,1738860650725,-1857.56,0.00017807,2]
[351956449,1738860650735,-901.62,0.00017807,2]
[351956450,1738860650744,-1181.4,0.00017807,2]
[351956451,1738860650754,-500.0,0.00017808,2]
[351956452,1738860650763,-769.06,0.00017808,2]
[351956453,1738860650773,-500.0,0.00017808,2]
[351956454,1738860650782,-500.0,0.00017808,2]
[351956455,1738860650792,-1104.2,0.00017808,2]
[351956456,1738860650801,-1514.73042414,0.00017808,2]
[351956457,1738860650812,-400.24957586,0.00017808,2]
[351956458,1738860650822,-500.0,0.00017808,2]
[351956459,1738860650832,-500.0,0.00017808,2]
[351956460,1738860650841,-1560.07,0.00017808,2]
[351956461,1738860650851,-500.0,0.00017808,2]
[351956462,1738860650861,-500.0,0.00017808,2]
[351956463,1738860650872,-1556.99,0.00017808,2]
[351956464,1738860650882,-500.0,0.00017808,2]
[351956465,1738860650893,-500.0,0.00017808,2]
[351956466,1738860650904,-682.72,0.00017808,2]
[351956467,1738860650915,-973.72,0.00017808,2]
[351956468,1738860650924,-707.35,0.00017808,2]
[351956469,1738860650934,-750.97,0.00017808,2]
[351956470,1738860650944,-511.46,0.00017808,2]
[351956471,1738860650954,-675.15,0.00017808,2]
[351956472,1738860650964,-759.09,0.00017808,2]
[351956473,1738860650976,-1470.9,0.00017808,2]
[351956474,1738860650996,-500.0,0.00017808,2]
[351956475,1738860651006,-1530.82,0.00017808,2]
[351956476,1738860651016,-780.39,0.00017808,2]
[351956477,1738860651025,-500.0,0.00017808,2]
[351956478,1738860651035,-500.0,0.00017808,2]
[351956479,1738860651044,-500.0,0.00017808,2]
[351956480,1738860651054,-554.73,0.00017808,2]
[351956481,1738860651063,-500.0,0.00017808,2]
[351956482,1738860651073,-500.0,0.00017808,2]
[351956483,1738860651083,-558.21,0.00017808,2]
[351956484,1738860651093,-500.0,0.00017808,2]
[351956485,1738860651103,-500.0,0.00017808,2]
[351956486,1738860651112,-500.0,0.00017808,2]
[351956487,1738860651123,-1212.42,0.00017808,2]
[351956488,1738860651132,-500.0,0.00017808,2]
[351956489,1738860651142,-838.35,0.00017808,2]
[351956490,1738860651152,-576.25271887,0.00017808,2]
[351956491,1738860651161,-1142.64,0.00017808,2]
[351956492,1738860651171,-1268.05,0.00017808,2]
[351956493,1738860651181,-500.0,0.00017808,2]
[351956494,1738860651191,-500.0,0.00017808,2]
[351956495,1738860651201,-500.0,0.00017808,2]
[351956496,1738860651211,-601.72,0.00017808,2]
[351956497,1738860651221,-500.0,0.00017808,2]
[351956498,1738860651232,-500.0,0.00017808,2]
[351956499,1738860651243,-692.47,0.00017808,2]
[351956500,1738860651254,-631.28,0.00017808,2]
[351956501,1738860651264,-1170.55,0.00017894,2]
[351956502,1738860651279,-746.58,0.00017944,2]
[351956503,1738860651291,-1857.56,0.00017944,2]
[351956504,1738860651301,-901.62,0.00017944,2]
[351956505,1738860651312,-1181.4,0.00017944,2]
[351956506,1738860651322,-500.0,0.00017945,2]
[351956507,1738860651332,-769.06,0.00017945,2]
[351956508,1738860651342,-500.0,0.00017945,2]
[351956509,1738860651351,-500.0,0.00017945,2]
[351956510,1738860651361,-1104.2,0.00017945,2]
[351956511,1738860651374,-1914.98,0.00017945,2]
[351956512,1738860651385,-500.0,0.00017945,2]
[351956513,1738860651396,-571.69292811,0.00017945,2]
[351956514,1738860651406,-1560.07,0.00017945,2]
[351956515,1738860651416,-500.0,0.00017945,2]
[351956516,1738860651425,-500.0,0.00017945,2]
[351956517,1738860651435,-1556.99,0.00017945,2]
[351956518,1738860651444,-500.0,0.00017945,2]
[351956519,1738860651454,-500.0,0.00017945,2]
[351956520,1738860651463,-682.72,0.00017945,2]
[351956521,1738860651473,-973.72,0.00017945,2]
[351956522,1738860651482,-707.35,0.00017945,2]
[351956523,1738860651492,-750.97,0.00017945,2]
[351956524,1738860651501,-511.46,0.00017945,2]
[351956525,1738860651510,-675.15,0.00017945,2]
[351956526,1738860651520,-759.09,0.00017945,2]
[351956527,1738860651529,-1470.9,0.00017945,2]
[351956528,1738860651539,-500.0,0.00017945,2]
[351956529,1738860651549,-1530.82,0.00017945,2]
[351956530,1738860651558,-780.39,0.00017945,2]
[351956531,1738860651567,-500.0,0.00017945,2]
[351956532,1738860651577,-500.0,0.00017945,2]
[351956533,1738860651586,-500.0,0.00017945,2]
[351956534,1738860651595,-554.73,0.00017945,2]
[351956535,1738860651605,-500.0,0.00017945,2]
[351956536,1738860651613,-500.0,0.00017945,2]
[351956537,1738860651624,-558.21,0.00017945,2]
[351956538,1738860651635,-500.0,0.00017945,2]
[351956539,1738860651644,-500.0,0.00017945,2]
[351956540,1738860651653,-500.0,0.00017945,2]
[351956541,1738860651663,-1212.42,0.00017945,2]
[351956542,1738860651672,-500.0,0.00017945,2]
[351956543,1738860651682,-838.35,0.00017945,2]
[351956544,1738860651692,-1142.64,0.00017945,2]
[351956545,1738860651701,-1268.05,0.00017945,2]
[351956546,1738860651711,-500.0,0.00017945,2]
[351956547,1738860651721,-500.0,0.00017945,2]
[351956548,1738860651731,-500.0,0.00017945,2]
[351956549,1738860651740,-601.72,0.00017945,2]
[351956550,1738860651750,-500.0,0.00017945,2]
[351956551,1738860651759,-500.0,0.00017945,2]
[351956552,1738860651769,-692.47,0.00017945,2]
[351956553,1738860651778,-631.28,0.00017945,2]
[351956554,1738860651788,-165.7,0.00018016,2]
[351956555,1738860651798,-746.58,0.00018081,2]
[351956556,1738860651808,-1857.56,0.00018081,2]
[351956557,1738860651817,-901.62,0.00018081,2]
[351956558,1738860651827,-1181.4,0.00018081,2]
[351956559,1738860651837,-500.0,0.00018082,2]
[351956560,1738860651847,-769.06,0.00018082,2]
[351956561,1738860651856,-500.0,0.00018082,2]
[351956562,1738860651866,-500.0,0.00018082,2]
[351956563,1738860651879,-1104.2,0.00018082,2]
[351956564,1738860651889,-1914.98,0.00018082,2]
[351956565,1738860651901,-500.0,0.00018082,2]
[351956566,1738860651911,-1560.07,0.00018082,2]
[351956567,1738860651921,-500.0,0.00018082,2]
[351956568,1738860651932,-500.0,0.00018082,2]
[351956569,1738860651942,-1556.99,0.00018082,2]
[351956570,1738860651953,-500.0,0.00018082,2]
[351956571,1738860651963,-500.0,0.00018082,2]
[351956572,1738860651976,-682.72,0.00018082,2]
[351956573,1738860651986,-973.72,0.00018082,2]
[351956574,1738860652000,-707.35,0.00018082,2]
[351956575,1738860652010,-750.97,0.00018082,2]
[351956576,1738860652021,-511.46,0.00018082,2]
[351956577,1738860652030,-675.15,0.00018082,2]
[351956578,1738860652040,-759.09,0.00018082,2]
[351956579,1738860652050,-1470.9,0.00018082,2]
[351956580,1738860652060,-500.0,0.00018082,2]
[351956581,1738860652070,-1530.82,0.00018082,2]
[351956582,1738860652080,-780.39,0.00018082,2]
[351956583,1738860652095,-500.0,0.00018082,2]
[351956584,1738860652114,-500.0,0.00018082,2]
[351956585,1738860652130,-500.0,0.00018082,2]
[351956586,1738860652140,-554.73,0.00018082,2]
[351956587,1738860652150,-500.0,0.00018082,2]
[351956588,1738860652161,-500.0,0.00018082,2]
[351956589,1738860652171,-500.0,0.00018082,2]
[351956590,1738860652182,-558.21,0.00018082,2]
[351956591,1738860652192,-500.0,0.00018082,2]
[351956592,1738860652203,-447.71274897,0.00018082,2]
[351956593,1738860652212,-1212.42,0.00018082,2]
[351956594,1738860652222,-192.7428907,0.00018082,2]
[351956595,1738860652232,-838.35,0.00018082,2]
[351956596,1738860652242,-1142.64,0.00018082,2]
[351956597,1738860652252,-1268.05,0.00018082,2]
[351956598,1738860652262,-500.0,0.00018082,2]
[351956599,1738860652272,-500.0,0.00018082,2]
[351956600,1738860652282,-500.0,0.00018082,2]
[351956601,1738860652291,-601.72,0.00018082,2]
[351956602,1738860652302,-187.65597308,0.00018082,2]
[351956603,1738860652313,-500.0,0.00018082,2]
[351956604,1738860652325,-692.47,0.00018082,2]
[351956605,1738860652335,-631.28,0.00018082,2]
[351956606,1738860652347,-2000.0,0.00018082,2]
[351956607,1738860652358,-1000.0,0.0001816,2]
[351956608,1738860652369,-746.58,0.00018218,2]
[351956609,1738860652382,-1857.56,0.00018218,2]
[351956610,1738860652392,-901.62,0.00018218,2]
[351956611,1738860652401,-1181.4,0.00018218,2]
[351956612,1738860652413,-500.0,0.00018219,2]
[351956613,1738860652424,-769.06,0.00018219,2]
[351956614,1738860652434,-500.0,0.00018219,2]
[351956615,1738860652444,-500.0,0.00018219,2]
[351956616,1738860652454,-1104.2,0.00018219,2]
[351956617,1738860652465,-1914.98,0.00018219,2]
[351956618,1738860652478,-500.0,0.00018219,2]
[351956619,1738860652488,-1560.07,0.00018219,2]
[351956620,1738860652499,-500.0,0.00018219,2]
[351956621,1738860652509,-500.0,0.00018219,2]
[351956622,1738860652520,-1556.99,0.00018219,2]
[351956623,1738860652531,-500.0,0.00018219,2]
[351956624,1738860652541,-500.0,0.00018219,2]
[351956625,1738860652551,-682.72,0.00018219,2]
[351956626,1738860652560,-973.72,0.00018219,2]
[351956627,1738860652571,-707.35,0.00018219,2]
[351956628,1738860652582,-750.97,0.00018219,2]
[351956629,1738860652592,-511.46,0.00018219,2]
[351956630,1738860652602,-675.15,0.00018219,2]
[351956631,1738860652612,-759.09,0.00018219,2]
[351956632,1738860652626,-1470.9,0.00018219,2]
[351956633,1738860652638,-500.0,0.00018219,2]
[351956634,1738860652649,-1530.82,0.00018219,2]
[351956635,1738860652659,-780.39,0.00018219,2]
[351956636,1738860652670,-500.0,0.00018219,2]
[351956637,1738860652680,-500.0,0.00018219,2]
[351956638,1738860652690,-500.0,0.00018219,2]
[351956639,1738860652700,-554.73,0.00018219,2]
[351956640,1738860652710,-500.0,0.00018219,2]
[351956641,1738860652719,-500.0,0.00018219,2]
[351956642,1738860652730,-500.0,0.00018219,2]
[351956643,1738860652740,-558.21,0.00018219,2]
[351956644,1738860652750,-500.0,0.00018219,2]
[351956645,1738860652760,-1212.42,0.00018219,2]
[351956646,1738860652771,-838.35,0.00018219,2]
[351956647,1738860652783,-1142.64,0.00018219,2]
[351956648,1738860652793,-1268.05,0.00018219,2]
[351956649,1738860652805,-159.82997388,0.00018219,2]
[351956650,1738860652815,-500.0,0.00018219,2]
[351956651,1738860652824,-286.96620711,0.00018219,2]
[351956652,1738860652835,-601.72,0.00018219,2]
[351956653,1738860652844,-500.0,0.00018219,2]
[351956654,1738860652854,-692.47,0.00018219,2]
[351956655,1738860652864,-631.28,0.00018219,2]
[351956656,1738860652876,-1272.0,0.00018271,2]
[351956657,1738860652886,-2023.0,0.00018271,2]
[351956658,1738860652901,-638.0,0.00018271,2]
[351956659,1738860652911,-568.0,0.00018271,2]
[351956660,1738860652921,-150.0,0.00018271,2]
[351956661,1738860652931,-1826.0,0.00018271,2]
[351956662,1738860652941,-783.0,0.00018271,2]
[351956663,1738860652951,-1284.43,0.00018271,2]
[351956664,1738860652962,-2953.0,0.00018271,2]
[351956665,1738860652973,-907.0,0.00018271,2]
[351956666,1738860652984,-539.0,0.00018271,2]
[351956667,1738860652994,-4023.0,0.00018271,2]
[351956668,1738860653004,-250.0,0.00018271,2]
[351956669,1738860653014,-150.0,0.00018271,2]
[351956670,1738860653023,-169.0,0.00018271,2]
[351956671,1738860653034,-179.03,0.00018271,2]
[351956672,1738860653045,-3911.0,0.00018271,2]
[351956673,1738860653056,-1108.0,0.00018271,2]
[351956674,1738860653066,-161.507,0.00018271,2]
[351956675,1738860653075,-200.0,0.00018271,2]
[351956676,1738860653085,-150.0,0.00018271,2]
[351956677,1738860653095,-746.58,0.00018355,2]
[351956678,1738860653105,-1857.56,0.00018355,2]
[351956679,1738860653114,-901.62,0.00018355,2]
[351956680,1738860653126,-1181.4,0.00018355,2]
[351956681,1738860653135,-500.0,0.00018356,2]
[351956682,1738860653144,-769.06,0.00018356,2]
[351956683,1738860653154,-500.0,0.00018356,2]
[351956684,1738860653164,-500.0,0.00018356,2]
[351956685,1738860653174,-1104.2,0.00018356,2]
[351956686,1738860653183,-1914.98,0.00018356,2]
[351956687,1738860653193,-500.0,0.00018356,2]
[351956688,1738860653203,-1560.07,0.00018356,2]
[351956689,1738860653213,-500.0,0.00018356,2]
[351956690,1738860653223,-583.87052865,0.00018356,2]
[351956691,1738860653233,-1556.99,0.00018356,2]
[351956692,1738860653243,-500.0,0.00018356,2]
[351956693,1738860653252,-500.0,0.00018356,2]
[351956694,1738860653262,-682.72,0.00018356,2]
[351956695,1738860653272,-973.72,0.00018356,2]
[351956696,1738860653283,-707.35,0.00018356,2]
[351956697,1738860653293,-511.46,0.00018356,2]
[351956698,1738860653303,-750.97,0.00018356,2]
[351956699,1738860653313,-675.15,0.00018356,2]
[351956700,1738860653324,-759.09,0.00018356,2]
[351956701,1738860653335,-1470.9,0.00018356,2]
[351956702,1738860653345,-500.0,0.00018356,2]
[351956703,1738860653355,-1530.82,0.00018356,2]
[351956704,1738860653365,-780.39,0.00018356,2]
[351956705,1738860653377,-500.0,0.00018356,2]
[351956706,1738860653386,-500.0,0.00018356,2]
[351956707,1738860653396,-500.0,0.00018356,2]
[351956708,1738860653560,-554.73,0.00018356,2]
[351956709,1738860653581,-578.84461355,0.00018356,2]
[351956710,1738860653591,-500.0,0.00018356,2]
[351956711,1738860653601,-500.0,0.00018356,2]
[351956712,1738860653611,-558.21,0.00018356,2]
[351956713,1738860653623,-500.0,0.00018356,2]
[351956714,1738860653633,-1212.42,0.00018356,2]
[351956715,1738860653643,-838.35,0.00018356,2]
[351956716,1738860653652,-1142.64,0.00018356,2]
[351956717,1738860653662,-1268.05,0.00018356,2]
[351956718,1738860653672,-500.0,0.00018356,2]
[351956719,1738860653682,-601.72,0.00018356,2]
[351956720,1738860653692,-500.0,0.00018356,2]
[351956721,1738860653702,-692.47,0.00018356,2]
[351956722,1738860653712,-631.28,0.00018356,2]
[351956723,1738860653722,-62948.6926527,0.00018356,2]
[351956724,1738860654026,-968.31,0.00018356,2]
[351956769,1738861831548,-1844.5748,8.836e-05,2]
[351956770,1738861831559,-19.31015208,8.836e-05,2]
[351956771,1738861831571,-1990.29909972,8.836e-05,2]
[351956772,1738861831583,-302.54520005,8.836e-05,2]
[351956773,1738861831602,-544.09814815,8.836e-05,2]
[351956774,1738861831611,-154.628653,9.881e-05,2]
[351956775,1738861831621,-158.016599,9.881e-05,2]
[351956776,1738861831630,-164.349198,9.881e-05,2]
[351956777,1738861831639,-725.16885882,9.881e-05,2]
[351956778,1738861831649,-155.94,0.00010137,2]
[351956779,1738861831659,-154.628653,0.00010292,2]
[351956780,1738861831669,-158.016599,0.00010429,2]
[351956781,1738861831678,-154.628653,0.00010703,2]
[351956782,1738861831687,-158.016599,0.0001084,2]
[351956783,1738861831697,-154.628653,0.00011114,2]
[351956784,1738861831707,-158.016599,0.00011388,2]
[351956785,1738861831717,-787.07,0.0001388,2]
[351956786,1738861831726,-2045.575851,0.00015361,2]
[351956787,1738861831735,-200.0,0.00015438,2]
[351956788,1738861831746,-165.7,0.00015466,2]
[351956789,1738861831755,-154.93,0.00015511,2]
[351956790,1738861831766,-208.0,0.00015671,2]
[351956791,1738861831775,-176.61,0.00015672,2]
[351956792,1738861831785,-3392.71790659,0.00015672,2]
[351956793,1738861831801,-1985.9556171,0.00015672,2]
[351956794,1738861831813,-738.44822419,0.00015672,2]
[351956795,1738861831850,-17782.87825212,0.00015672,2]
[351956796,1738861831859,-1000.0,0.00015681,2]
[351956797,1738861831888,-200.0,0.00015958,2]
[351956798,1738861831897,-787.07,0.00016144,2]
[351956799,1738861831908,-380.39,0.00016438,2]
[351956800,1738861831917,-376.0,0.00016438,2]
[351956801,1738861831927,-467.29,0.00016658,30]
[351956802,1738861831938,-205.0,0.0001668,2]
[351956803,1738861831947,-61783.67261788,0.00016712,2]
[351956806,1738861831998,-14037.04928971,0.00016712,2]
[351956809,1738861832009,-1000.0,0.000168,6]
[351956810,1738861832019,-1379.235,0.00016808,2]
[351956812,1738861832028,-2100.0,0.000169,6]
[351956813,1738861832038,-5000.0,0.000169,2]
[351956814,1738861832047,-205.0,0.0001698,2]
[351956815,1738861832056,-572.42,0.00016985,2]
[351956816,1738861832065,-678.78,0.00016985,2]
[351956817,1738861832074,-4943.19983029,0.0001702,2]
[351956818,1738861832083,-322.96236687,0.00017022,2]
[351956819,1738861832092,-200.22,0.00017111,2]
[351956820,1738861832102,-1061.4,0.0001712,2]
[351956821,1738861832111,-677.64,0.0001712,2]
[351956822,1738861832121,-2320.36,0.0001712,2]
[351956823,1738861832131,-1057.3,0.0001712,2]
[351956824,1738861832140,-1390.44,0.0001712,2]
[351956825,1738861832149,-154.628653,0.0001712,2]
[351956826,1738861832158,-702.27,0.0001712,2]
[351956827,1738861832168,-1330.76,0.0001712,2]
[351956828,1738861832177,-1549.77,0.0001712,2]
[351956829,1738861832186,-1149.66,0.0001712,2]
[351956830,1738861832196,-500.0,0.0001712,2]
[351956831,1738861832206,-1130.88,0.0001712,2]
[351956832,1738861832215,-1058.42,0.0001712,2]
[351956833,1738861832224,-591.92,0.0001712,2]
[351956834,1738861832234,-500.0,0.0001712,2]
[351956835,1738861832243,-919.01,0.0001712,2]
[351956836,1738861832255,-1259.14,0.0001712,2]
[351956837,1738861832266,-1962.62464189,0.0001712,2]
[351956838,1738861832278,-757.1179525,0.0001712,2]
[351956839,1738861832289,-182.72740561,0.0001712,2]
[351956840,1738861832299,-782.43862982,0.0001712,2]
[351956841,1738861832324,-298.35137018,0.0001712,2]
[351956842,1738861832334,-1591.11,0.0001712,2]
[351956843,1738861832343,-1126.62419973,0.0001712,2]
[351956844,1738861832374,-176.34580027,0.0001712,2]
[351956845,1738861832389,-1528.37,0.0001712,2]
[351956846,1738861832398,-1378.0,0.0001712,2]
[351956847,1738861832408,-14.78420023,0.0001712,2]
[351956853,1738861837576,-436.47475295,0.0001712,2]
[351956854,1738861837587,-1477.45104682,0.0001712,2]
[351956855,1738861837596,-1701.03,0.0001712,2]
[351956856,1738861837605,-340.91889944,0.0001712,2]
[351956857,1738861837627,-874.99110056,0.0001712,2]
[351956858,1738861837636,-1144.3592676,0.0001712,2]
[351956859,1738861837648,-360.6707324,0.0001712,2]
[351956860,1738861837658,-1895.7,0.0001712,2]
[351956861,1738861837667,-500.0,0.0001712,2]
[351956862,1738861837676,-3013.77,0.0001712,2]
[351956863,1738861837686,-936.5,0.0001712,2]
[351956864,1738861837695,-1793.39,0.0001712,2]
[351956865,1738861837705,-1477.06,0.0001712,2]
[351956866,1738861837715,-1577.4,0.0001712,2]
[351956867,1738861837725,-5300.74,0.0001712,2]
[351956868,1738861837735,-1169.73,0.0001712,2]
[351956869,1738861837744,-2574.15,0.0001712,2]
[351956870,1738861837753,-2515.4,0.0001712,2]
[351956871,1738861837764,-2027.32,0.0001712,2]
[351956872,1738861837774,-2110.85,0.0001712,2]
[351956873,1738861837783,-1476.55,0.0001712,2]
[351956874,1738861837793,-1529.46,0.0001712,2]
[351956875,1738861837803,-2849.47,0.0001712,2]
[351956876,1738861837813,-1830.91,0.0001712,2]
[351956877,1738861837822,-3547.39,0.0001712,2]
[351956878,1738861837832,-1971.2,0.0001712,2]
[351956879,1738861837841,-1234.07,0.0001712,2]
[351956880,1738861837850,-500.0,0.0001712,2]
[351956881,1738861837859,-500.0,0.0001712,2]
[351956882,1738861837871,-1544.59,0.0001712,2]
[351956883,1738861837882,-1656.43,0.0001712,2]
[351956884,1738861837892,-1394.51,0.0001712,2]
[351956885,1738861837901,-2048.20980607,0.0001712,2]
[351956887,1738861837913,-1503.88525785,0.0001712,2]
[351956889,1738861837925,-191.59493608,0.0001712,2]
[351956891,1738861837935,-500.0,0.0001712,2]
[351956893,1738861837944,-963.12,0.0001712,2]
[351956895,1738861837953,-599.69,0.0001712,2]
[351956897,1738861837962,-995.87121331,0.0001712,2]